Workbook

Sheet Sheet1
A1: # | B1: calls | C1: freq | D1: time | E1: spotter
A2: 1 | B2: DR5N | C2: 7022.1 | D2: 1 | E2: SV8RV
A3: 2 | B3: NN3W | C3: 7059 | D3: 1 | E3: V51YJ
A4: 3 | B4: M0UNN | C4: 7045.5 | D4: 1 | E4: G4HYG
A5: 4 | B5: N3RR | C5: 7006.5 | D5: 1 | E5: W4AX
A6: 5 | B6: 9A5K | C6: 7045.8 | D6: 1 | E6: K3LR
A7: 6 | B7: AI2N | C7: 7061 | D7: 1 | E7: KB9AMG
A8: 7 | B8: W3UA | C8: 7008.8 | D8: 1 | E8: DK9IP
A9: 8 | B9: SZ1A | C9: 7033.7 | D9: 1 | E9: DR1A
A10: 9 | B10: IR4M | C10: 7018.6 | D10: 1 | E10: G0VXE
A11: 10 | B11: W3LL | C11: 7043.3 | D11: 1 | E11: OE3DIA
A12: 11 | B12: DJ5UW | C12: 7023 | D12: 1 | E12: S52AW
A13: 12 | B13: J75Z | C13: 7030.5 | D13: 1 | E13: WB2LSI
A14: 13 | B14: EF3A | C14: 7022.8 | D14: 1 | E14: SV9/IV3NOB
A15: 14 | B15: DR1D | C15: 7024.6 | D15: 1 | E15: RZ3DVP
A16: 15 | B16: D4C | C16: 7044.4 | D16: 1 | E16: KQ8M
A17: 16 | B17: UX4U | C17: 7030 | D17: 1 | E17: WZ7I
A18: 17 | B18: AA1K | C18: 7039.8 | D18: 1 | E18: KA9SWE
A19: 18 | B19: G5O | C19: 7057 | D19: 1 | E19: EA1FAQ
A20: 19 | B20: A45XR | C20: 7053.5 | D20: 1 | E20: OL5Q
A21: 20 | B21: N3RR | C21: 7006.5 | D21: 1 | E21: EI6IZ
A22: 21 | B22: NR4M | C22: 7001 | D22: 1 | E22: S52AW
A23: 22 | B23: N3RR | C23: 7006.5 | D23: 1 | E23: S52AW
A24: 23 | B24: A45XR | C24: 7053.5 | D24: 1 | E24: S52AW
A25: 24 | B25: A45XR | C25: 7053.5 | D25: 1 | E25: ES5PC
A26: 25 | B26: S57Z | C26: 7014.6 | D26: 1 | E26: W3LPL
A27: 26 | B27: A45XR | C27: 7053.5 | D27: 1 | E27: RN3A
A28: 27 | B28: DR5N | C28: 7022.1 | D28: 1 | E28: DJ9IE
A29: 28 | B29: A45XR | C29: 7053.5 | D29: 1 | E29: DL1EMY
A30: 29 | B30: DJ5MW | C30: 7023 | D30: 1 | E30: K3MM
A31: 30 | B31: DR1D | C31: 7024.6 | D31: 1 | E31: K3MM
A32: 31 | B32: S59ABC | C32: 7038.2 | D32: 1 | E32: K3MM
A33: 32 | B33: DR5N | C33: 7022.1 | D33: 1 | E33: K3MM
A34: 33 | B34: P3F | C34: 7018.9 | D34: 1 | E34: PA0MBO
A35: 34 | B35: K9CT | C35: 7035.8 | D35: 1 | E35: W4KAZ
A36: 35 | B36: VE9BK | C36: 7047 | D36: 1 | E36: AA4VV
A37: 36 | B37: EI7M | C37: 7015.5 | D37: 1 | E37: SV8RV
A38: 37 | B38: A45XR | C38: 7053.5 | D38: 1 | E38: RU9CZD
A39: 38 | B39: EI7M | C39: 7015.5 | D39: 1 | E39: RU9CZD
A40: 39 | B40: N2MM | C40: 7034.9 | D40: 1 | E40: G4HYG
A41: 40 | B41: NN3Q | C41: 7028.9 | D41: 1 | E41: W3OA
A42: 41 | B42: S57Z | C42: 7014.6 | D42: 1 | E42: K1TTT
A43: 42 | B43: ZF1A | C43: 7020 | D43: 1 | E43: WB2LSI
A44: 43 | B44: P3F | C44: 7020.4 | D44: 1 | E44: G0VXE
A45: 44 | B45: NN3Q | C45: 7028.9 | D45: 1 | E45: WB8BIL
A46: 45 | B46: S57DX | C46: 7045.4 | D46: 1 | E46: W3LPL
A47: 46 | B47: YU7JDE | C47: 7024.2 | D47: 1 | E47: W3LPL
A48: 47 | B48: KB1H | C48: 7013.9 | D48: 1 | E48: DK9IP
A49: 48 | B49: EI7M | C49: 7015.5 | D49: 1 | E49: K3MM
A50: 49 | B50: HA5MK | C50: 7038.6 | D50: 1 | E50: F5MUX
A51: 50 | B51: A45XR | C51: 7053.5 | D51: 1 | E51: DL8LAS
A52: 51 | B52: W9RE | C52: 7014.8 | D52: 1 | E52: SV9/IV3NOB
A53: 52 | B53: PJ7I | C53: 7049 | D53: 1 | E53: KB9AMG
A54: 53 | B54: S50G | C54: 7036.5 | D54: 1 | E54: RU9CZD
A55: 54 | B55: OH2BAH | C55: 7048.1 | D55: 1 | E55: RU9CZD
A56: 55 | B56: OH5Z | C56: 7061.5 | D56: 1 | E56: RU9CZD
A57: 56 | B57: S50G | C57: 7036.4 | D57: 1 | E57: S52AW
A58: 57 | B58: K3WW | C58: 7001.9 | D58: 1 | E58: OL5Q
A59: 58 | B59: P3F | C59: 7018.9 | D59: 1 | E59: DR1A
A60: 59 | B60: N3RS | C60: 7001.6 | D60: 1 | E60: DK9IP
A61: 60 | B61: K3LA | C61: 7006.3 | D61: 1 | E61: OE3DIA
A62: 61 | B62: EI7M | C62: 7015.5 | D62: 1 | E62: W4AX
A63: 62 | B63: YL3FT | C63: 7040.9 | D63: 1 | E63: OL5Q
A64: 63 | B64: OQ5M | C64: 7037.3 | D64: 1 | E64: OL5Q
A65: 64 | B65: DP4X | C65: 7031.4 | D65: 1 | E65: K3MM
A66: 65 | B66: 9A5K | C66: 7045.7 | D66: 1 | E66: K3MM
A67: 66 | B67: DF3CB | C67: 7025 | D67: 1 | E67: K3MM
A68: 67 | B68: YT6T | C68: 7027 | D68: 1 | E68: K3MM
A69: 68 | B69: UA6LCN | C69: 7014.2 | D69: 1 | E69: OL5Q
A70: 69 | B70: AD4Z | C70: 7028 | D70: 1 | E70: F5MUX
A71: 70 | B71: NP2N | C71: 7062 | D71: 1 | E71: WB2LSI
A72: 71 | B72: W3EU | C72: 7011.7 | D72: 1 | E72: GW8IZR
A73: 72 | B73: N3RR | C73: 7006.5 | D73: 1 | E73: DL8LAS
A74: 73 | B74: K3WI | C74: 7012 | D74: 1 | E74: DL8LAS
A75: 74 | B75: II1A | C75: 7021.8 | D75: 1 | E75: NY3A
A76: 75 | B76: P3F | C76: 7018.9 | D76: 1 | E76: LA5EKA
A77: 76 | B77: OH6R | C77: 7031.8 | D77: 1 | E77: RU9CZD
A78: 77 | B78: 9A1A | C78: 7026.9 | D78: 1 | E78: RU9CZD
A79: 78 | B79: YT6T | C79: 7027 | D79: 1 | E79: RU9CZD
A80: 79 | B80: A45XR | C80: 7053.5 | D80: 1 | E80: RZ3DVP
A81: 80 | B81: G5O | C81: 7057 | D81: 1 | E81: RN4WA
A82: 81 | B82: N1MM | C82: 7047.8 | D82: 1 | E82: KA9SWE
A83: 82 | B83: OL7M | C83: 7018.4 | D83: 1 | E83: EA1FAQ
A84: 83 | B84: ED1R | C84: 7012.8 | D84: 1 | E84: G0VXE
A85: 84 | B85: UW4I | C85: 7022.5 | D85: 1 | E85: G0VXE
A86: 85 | B86: N2WN | C86: 7068.4 | D86: 1 | E86: KB9AMG
A87: 86 | B87: CR3L | C87: 7048.4 | D87: 1 | E87: DJ9IE
A88: 87 | B88: EF3A | C88: 7022.8 | D88: 1 | E88: RN3A
A89: 88 | B89: ED1R | C89: 7011.4 | D89: 1 | E89: S52AW
A90: 89 | B90: N3RS | C90: 7001.6 | D90: 1 | E90: S52AW
A91: 90 | B91: ZF1A | C91: 7020 | D91: 1 | E91: S52AW
A92: 91 | B92: S57DX | C92: 7045.4 | D92: 1 | E92: TF3Y
A93: 92 | B93: CR3L | C93: 7048.4 | D93: 1 | E93: S52AW
A94: 93 | B94: S58Q | C94: 7047.1 | D94: 1 | E94: S52AW
A95: 94 | B95: A45XR | C95: 7053.5 | D95: 1 | E95: DR1A
A96: 95 | B96: N4UU | C96: 7056.7 | D96: 1 | E96: KB9AMG
A97: 96 | B97: N3RS | C97: 7001.6 | D97: 1 | E97: GW8IZR
A98: 97 | B98: N4UU | C98: 7056.7 | D98: 1 | E98: DL8LAS
A99: 98 | B99: AA4NC | C99: 7042.3 | D99: 1 | E99: W4KAZ
A100: 99 | B100: G5D | C100: 7007.8 | D100: 1 | E100: SV8RV
A101: 100 | B101: N4UU | C101: 7056.7 | D101: 1 | E101: EA4TX
A102: 101 | B102: UA6LCN | C102: 7014.2 | D102: 1 | E102: W3LPL
A103: 102 | B103: G5O | C103: 7057 | D103: 1 | E103: W3LPL
A104: 103 | B104: RG3K | C104: 7060.1 | D104: 1 | E104: W3LPL
A105: 104 | B105: DF3CB | C105: 7025 | D105: 1 | E105: W3LPL
A106: 105 | B106: 4U1GSC | C106: 7027.6 | D106: 1 | E106: W3LPL
A107: 106 | B107: DR1D | C107: 7024.6 | D107: 1 | E107: W3LPL
A108: 107 | B108: EE4E | C108: 7026.4 | D108: 1 | E108: G4HYG
A109: 108 | B109: PJ2T | C109: 7063 | D109: 1 | E109: WB2LSI
A110: 109 | B110: 9A7A | C110: 7026.1 | D110: 1 | E110: W3OA
A111: 110 | B111: DJ5MW | C111: 7023 | D111: 1 | E111: W4AX
A112: 111 | B112: II1A | C112: 7023.3 | D112: 1 | E112: G0VXE
A113: 112 | B113: AA4NC | C113: 7042.3 | D113: 1 | E113: WB8BIL
A114: 113 | B114: N4UU | C114: 7056.7 | D114: 1 | E114: KM3T
A115: 114 | B115: IR4M | C115: 7017.1 | D115: 1 | E115: S52AW
A116: 115 | B116: W9RE | C116: 7014.8 | D116: 1 | E116: W3LPL
A117: 116 | B117: EI7M | C117: 7015.5 | D117: 1 | E117: DK9IP
A118: 117 | B118: G5D | C118: 7007.7 | D118: 1 | E118: K3MM
A119: 118 | B119: S50G | C119: 7036.5 | D119: 1 | E119: K3MM
A120: 119 | B120: N4UU | C120: 7056.7 | D120: 1 | E120: K3MM
A121: 120 | B121: P3F | C121: 7018.9 | D121: 1 | E121: K3MM
A122: 121 | B122: N3RS | C122: 7001.6 | D122: 1 | E122: N0TA
A123: 122 | B123: CR3L | C123: 7000.4 | D123: 1 | E123: F5MUX
A124: 123 | B124: DA0I | C124: 7015.6 | D124: 1 | E124: SV9/IV3NOB
A125: 124 | B125: II1A | C125: 7021.8 | D125: 1 | E125: RN4WA
A126: 125 | B126: VE3JM | C126: 7044 | D126: 1 | E126: KA9SWE
A127: 126 | B127: N0NI | C127: 7018.6 | D127: 1 | E127: NC7J
A128: 127 | B128: DF3CB | C128: 7025 | D128: 1 | E128: EA1FAQ
A129: 128 | B129: W3EF | C129: 7011.7 | D129: 1 | E129: S50ARX
A130: 129 | B130: EI7M | C130: 7015.5 | D130: 1 | E130: W3LPL
A131: 130 | B131: N0NI | C131: 7018.6 | D131: 1 | E131: K3MM
A132: 131 | B132: ED1R | C132: 7011.4 | D132: 1 | E132: GW8IZR
A133: 132 | B133: RT6A | C133: 7020.7 | D133: 1 | E133: W4KAZ
A134: 133 | B134: ED1R | C134: 7011.4 | D134: 1 | E134: SV8RV
A135: 134 | B135: RT6A | C135: 7020.8 | D135: 1 | E135: EA4TX
A136: 135 | B136: 4X/UA9CTT | C136: 7023.8 | D136: 1 | E136: G4HYG
A137: 136 | B137: S58Q | C137: 7047.1 | D137: 1 | E137: K3MM
A138: 137 | B138: K0DQ | C138: 7017.7 | D138: 1 | E138: W3OA
A139: 138 | B139: AA4NC | C139: 7042.3 | D139: 1 | E139: S52AW
A140: 139 | B140: N0NI | C140: 7018.6 | D140: 1 | E140: W4AX
A141: 140 | B141: AD4Z | C141: 7028 | D141: 1 | E141: DK9IP
A142: 141 | B142: PJ2T | C142: 7063 | D142: 1 | E142: G0KTN
A143: 142 | B143: AD4Z | C143: 7028 | D143: 1 | E143: KM3T
A144: 143 | B144: RT6A | C144: 7020.7 | D144: 1 | E144: WB2LSI
A145: 144 | B145: N0NI | C145: 7018.7 | D145: 1 | E145: K1TTT
A146: 145 | B146: W9RE | C146: 7014.8 | D146: 1 | E146: PJ2T
A147: 146 | B147: S58Q | C147: 7047.1 | D147: 1 | E147: K3MM
A148: 147 | B148: PJ2T | C148: 7063 | D148: 1 | E148: K3MM
A149: 148 | B149: C6AKQ | C149: 7022.6 | D149: 1 | E149: F5MUX
A150: 149 | B150: OH6R | C150: 7031.8 | D150: 1 | E150: RZ3DVP
A151: 150 | B151: G5D | C151: 7007.7 | D151: 1 | E151: RU9CZD
A152: 151 | B152: NQ4I | C152: 7025.1 | D152: 1 | E152: KQ8M
A153: 152 | B153: PJ2T | C153: 7063 | D153: 1 | E153: OL5Q
A154: 153 | B154: S53MM | C154: 7029.6 | D154: 1 | E154: EA1FAQ
A155: 154 | B155: N4UU | C155: 7056.7 | D155: 1 | E155: KB9AMG
A156: 155 | B156: IH9R | C156: 7009.7 | D156: 1 | E156: G0VXE
A157: 156 | B157: N0NI | C157: 7018.6 | D157: 1 | E157: W8WTS
A158: 157 | B158: IH9R | C158: 7008.3 | D158: 1 | E158: S52AW
A159: 158 | B159: IH9R | C159: 7008.3 | D159: 1 | E159: G4HSO
A160: 159 | B160: OK1AWZ | C160: 7042.5 | D160: 1 | E160: DL1EMY
A161: 160 | B161: IH9R | C161: 7008.3 | D161: 1 | E161: F4EGZ
A162: 161 | B162: DR1A | C162: 7034.3 | D162: 1 | E162: TF3Y
A163: 162 | B163: MM0AMW | C163: 7036.9 | D163: 1 | E163: K3MM
A164: 163 | B164: OZ5E | C164: 7016.3 | D164: 1 | E164: K3MM
A165: 164 | B165: RT6A | C165: 7020.7 | D165: 1 | E165: PA0MBO
A166: 165 | B166: IH9R | C166: 7008.3 | D166: 1 | E166: GW8IZR
A167: 166 | B167: CR3L | C167: 7048.4 | D167: 1 | E167: W4KAZ
A168: 167 | B168: W2YC | C168: 7016.5 | D168: 1 | E168: EA4TX
A169: 168 | B169: KI1G | C169: 7002.7 | D169: 1 | E169: V51YJ
A170: 169 | B170: RT6A | C170: 7020.7 | D170: 1 | E170: G4HYG
A171: 170 | B171: OH9W | C171: 7026.7 | D171: 1 | E171: RU9CZD
A172: 171 | B172: OZ5E | C172: 7016.3 | D172: 1 | E172: K3MM
A173: 172 | B173: PJ7I | C173: 7049 | D173: 1 | E173: KB9AMG
A174: 173 | B174: K4RO | C174: 7047.3 | D174: 1 | E174: WB2LSI
A175: 174 | B175: KC5LAN | C175: 7050 | D175: 1 | E175: W3OA
A176: 175 | B176: K1HI | C176: 7036.7 | D176: 1 | E176: WB8BIL
A177: 176 | B177: S52AW | C177: 7017.8 | D177: 1 | E177: K3LR
A178: 177 | B178: RX6CW | C178: 7020.7 | D178: 1 | E178: S52AW
A179: 178 | B179: OM5ZW | C179: 7024.1 | D179: 1 | E179: KM3T
A180: 179 | B180: SN7Q | C180: 7037.8 | D180: 1 | E180: PJ2T
A181: 180 | B181: PJ2T | C181: 7063 | D181: 1 | E181: DK9IP
A182: 181 | B182: AI2N | C182: 7061 | D182: 1 | E182: KB9AMG
A183: 182 | B183: AA1K | C183: 7039.5 | D183: 1 | E183: OE3DIA
A184: 183 | B184: W3EA | C184: 7030.3 | D184: 1 | E184: F5MUX
A185: 184 | B185: NA4M | C185: 7001 | D185: 1 | E185: GW8IZR
A186: 185 | B186: ZF1A | C186: 7020 | D186: 1 | E186: SV9/IV3NOB
A187: 186 | B187: LZ1GL | C187: 7033.2 | D187: 1 | E187: N6WIN
A188: 187 | B188: OH0V | C188: 7004.4 | D188: 1 | E188: RU9CZD
A189: 188 | B189: S58Q | C189: 7047.1 | D189: 1 | E189: RU9CZD
A190: 189 | B190: IH9N | C190: 7008.3 | D190: 1 | E190: KQ8M
A191: 190 | B191: F6KOP | C191: 7028.7 | D191: 1 | E191: EA1FAQ
A192: 191 | B192: K4RO | C192: 7048.3 | D192: 1 | E192: KA9SWE
A193: 192 | B193: N2WN | C193: 7065.9 | D193: 1 | E193: KB9AMG
A194: 193 | B194: W3EA | C194: 7030.2 | D194: 1 | E194: S50ARX
A195: 194 | B195: LZ1GL | C195: 7033.2 | D195: 1 | E195: EI6IZ
A196: 195 | B196: W3EA | C196: 7030.2 | D196: 1 | E196: S52AW
A197: 196 | B197: SO2X | C197: 7032.3 | D197: 1 | E197: K3MM
A198: 197 | B198: N0NI | C198: 7018.7 | D198: 1 | E198: N7TR
A199: 198 | B199: W3EA | C199: 7030.2 | D199: 1 | E199: GW8IZR
A200: 199 | B200: 9A1A | C200: 7027 | D200: 1 | E200: W4KAZ
... 4300 more rows

Sheet Sheet2

Sheet Sheet4
A1: Row Labels | B1: ? | C1: Busted | D1: Good Call | E1: Good Call, new freq? | F1: Grand Total | G1: % Good call, new freq?"
A2: DL4RCK | B2: 18 | F2: 18 | G2: =+E2/F2 -> 0
A3: VK1LW | B3: 1 | F3: 1 | G3: =+E3/F3 -> 0
A4: W4AX | B4: 88 | C4: 3 | D4: 10063 | E4: 27 | F4: 10181 | G4: =+E4/F4 -> 0.002651998821
A5: K1TTT | B5: 158 | C5: 264 | D5: 5939 | E5: 62 | F5: 6423 | G5: =+E5/F5 -> 0.009652810213
A6: RZ3DVP | B6: 166 | C6: 269 | D6: 8720 | E6: 100 | F6: 9255 | G6: =+E6/F6 -> 0.01080497029
A7: N4ZR | B7: 39 | C7: 36 | D7: 2515 | E7: 36 | F7: 2626 | G7: =+E7/F7 -> 0.01370906321
A8: NY3A | B8: 246 | C8: 358 | D8: 12384 | E8: 189 | F8: 13177 | G8: =+E8/F8 -> 0.01434317371
A9: V51YJ | B9: 216 | C9: 289 | D9: 6768 | E9: 112 | F9: 7385 | G9: =+E9/F9 -> 0.01516587678
A10: IK3STG | B10: 17 | C10: 12 | D10: 737 | E10: 14 | F10: 780 | G10: =+E10/F10 -> 0.01794871795
A11: G4HSO | B11: 198 | C11: 162 | D11: 9096 | E11: 175 | F11: 9631 | G11: =+E11/F11 -> 0.01817049112
A12: WE4S | B12: 219 | C12: 103 | D12: 6827 | E12: 137 | F12: 7286 | G12: =+E12/F12 -> 0.01880318419
A13: W3LPL | B13: 665 | C13: 675 | D13: 20113 | E13: 436 | F13: 21889 | G13: =+E13/F13 -> 0.01991868062
A14: ZL2HAM | B14: 251 | C14: 386 | D14: 8724 | E14: 191 | F14: 9552 | G14: =+E14/F14 -> 0.0199958124
A15: NQ6N | B15: 8 | C15: 5 | D15: 82 | E15: 2 | F15: 97 | G15: =+E15/F15 -> 0.0206185567
A16: TF4M | B16: 311 | C16: 383 | D16: 10601 | E16: 244 | F16: 11539 | G16: =+E16/F16 -> 0.02114567987
A17: W3OA | B17: 496 | C17: 282 | D17: 14578 | E17: 335 | F17: 15691 | G17: =+E17/F17 -> 0.02134981837
A18: N6WIN | B18: 416 | C18: 208 | D18: 9170 | E18: 222 | F18: 10016 | G18: =+E18/F18 -> 0.02216453674
A19: PJ2T | B19: 460 | C19: 340 | D19: 14923 | E19: 363 | F19: 16086 | G19: =+E19/F19 -> 0.02256620664
A20: DF7GB | B20: 330 | C20: 234 | D20: 11378 | E20: 284 | F20: 12226 | G20: =+E20/F20 -> 0.02322918371
A21: PA1T | B21: 234 | C21: 149 | D21: 9519 | E21: 241 | F21: 10143 | G21: =+E21/F21 -> 0.02376022873
A22: JJ0PJY | B22: 143 | C22: 91 | D22: 4265 | E22: 110 | F22: 4609 | G22: =+E22/F22 -> 0.02386634845
A23: 9V1RM | B23: 143 | C23: 75 | D23: 3041 | E23: 80 | F23: 3339 | G23: =+E23/F23 -> 0.02395926924
A24: NC7J | B24: 355 | C24: 130 | D24: 7381 | E24: 195 | F24: 8061 | G24: =+E24/F24 -> 0.02419054708
A25: OH6RE | B25: 284 | C25: 257 | D25: 9938 | E25: 261 | F25: 10740 | G25: =+E25/F25 -> 0.02430167598
A26: G0KTN | B26: 405 | C26: 234 | D26: 14280 | E26: 373 | F26: 15292 | G26: =+E26/F26 -> 0.02439183887
A27: ON5KQ | B27: 494 | C27: 310 | D27: 15987 | E27: 421 | F27: 17212 | G27: =+E27/F27 -> 0.02445967929
A28: WA7LNW | B28: 545 | C28: 199 | D28: 11677 | E28: 314 | F28: 12735 | G28: =+E28/F28 -> 0.02465645858
A29: N7TR | B29: 563 | C29: 264 | D29: 10946 | E29: 315 | F29: 12088 | G29: =+E29/F29 -> 0.02605890139
A30: F4EGZ | B30: 486 | C30: 246 | D30: 16783 | E30: 480 | F30: 17995 | G30: =+E30/F30 -> 0.02667407613
A31: N6TV | B31: 476 | C31: 134 | D31: 8547 | E31: 251 | F31: 9408 | G31: =+E31/F31 -> 0.02667942177
A32: JA4ZRK | B32: 307 | C32: 48 | D32: 3217 | E32: 108 | F32: 3680 | G32: =+E32/F32 -> 0.02934782609
A33: DL1EMY | B33: 535 | C33: 392 | D33: 17507 | E33: 573 | F33: 19007 | G33: =+E33/F33 -> 0.03014678803
A34: S50ARX | B34: 788 | C34: 400 | D34: 19027 | E34: 633 | F34: 20848 | G34: =+E34/F34 -> 0.03036262471
A35: DR1A | B35: 947 | C35: 458 | D35: 23630 | E35: 796 | F35: 25831 | G35: =+E35/F35 -> 0.03081568658
A36: OE3DIA | B36: 217 | C36: 101 | D36: 5018 | E36: 170 | F36: 5506 | G36: =+E36/F36 -> 0.03087540865
A37: UT2UU | B37: 154 | C37: 93 | D37: 4622 | E37: 156 | F37: 5025 | G37: =+E37/F37 -> 0.03104477612
A38: K3MM | B38: 1783 | C38: 922 | D38: 41595 | E38: 1426 | F38: 45726 | G38: =+E38/F38 -> 0.03118575865
A39: EI6IZ | B39: 111 | C39: 49 | D39: 2221 | E39: 77 | F39: 2458 | G39: =+E39/F39 -> 0.03132628153
A40: TF3Y | B40: 560 | C40: 360 | D40: 14680 | E40: 513 | F40: 16113 | G40: =+E40/F40 -> 0.03183764662
A41: JG1VGX | B41: 489 | C41: 64 | D41: 3660 | E41: 139 | F41: 4352 | G41: =+E41/F41 -> 0.03193933824
A42: EI6BT | B42: 583 | C42: 289 | D42: 15779 | E42: 579 | F42: 17230 | G42: =+E42/F42 -> 0.03360417876
A43: RN4WA | B43: 356 | C43: 139 | D43: 9397 | E43: 344 | F43: 10236 | G43: =+E43/F43 -> 0.03360687769
A44: KH6LC | B44: 477 | C44: 136 | D44: 7481 | E44: 288 | F44: 8382 | G44: =+E44/F44 -> 0.03435934145
A45: ES5PC | B45: 738 | C45: 450 | D45: 17782 | E45: 699 | F45: 19669 | G45: =+E45/F45 -> 0.03553815649
A46: RN3A | B46: 495 | C46: 221 | D46: 12183 | E46: 485 | F46: 13384 | G46: =+E46/F46 -> 0.03623729827
A47: DL8LAS | B47: 1043 | C47: 464 | D47: 24393 | E47: 1006 | F47: 26906 | G47: =+E47/F47 -> 0.03738942987
A48: KM3T | B48: 240 | C48: 142 | D48: 7707 | E48: 323 | F48: 8412 | G48: =+E48/F48 -> 0.03839752734
A49: N6NC | B49: 170 | C49: 103 | D49: 3331 | E49: 146 | F49: 3750 | G49: =+E49/F49 -> 0.03893333333
A50: KB9AMG | B50: 523 | C50: 59 | D50: 14021 | E50: 610 | F50: 15213 | G50: =+E50/F50 -> 0.04009728522
A51: KQ8M-98 | B51: 1 | D51: 22 | E51: 1 | F51: 24 | G51: =+E51/F51 -> 0.04166666667
A52: OL5Q | B52: 900 | C52: 666 | D52: 20424 | E52: 1016 | F52: 23006 | G52: =+E52/F52 -> 0.04416239242
A53: DJ3AK | B53: 402 | C53: 288 | D53: 14365 | E53: 704 | F53: 15759 | G53: =+E53/F53 -> 0.04467288534
A54: K3LR | B54: 831 | C54: 354 | D54: 10249 | E54: 535 | F54: 11969 | G54: =+E54/F54 -> 0.04469880525
A55: R4WT | B55: 16 | C55: 7 | D55: 379 | E55: 19 | F55: 421 | G55: =+E55/F55 -> 0.04513064133
A56: JK4USW | B56: 603 | C56: 216 | D56: 8147 | E56: 438 | F56: 9404 | G56: =+E56/F56 -> 0.04657592514
A57: K9QC | B57: 315 | C57: 171 | D57: 5155 | E57: 288 | F57: 5929 | G57: =+E57/F57 -> 0.04857480182
A58: SV9/IV3NOB | B58: 154 | C58: 50 | D58: 1066 | E58: 66 | F58: 1336 | G58: =+E58/F58 -> 0.0494011976
A59: WZ7I | B59: 103 | C59: 50 | D59: 1437 | E59: 83 | F59: 1673 | G59: =+E59/F59 -> 0.04961147639
A60: K0FTC | B60: 30 | C60: 17 | D60: 546 | E60: 31 | F60: 624 | G60: =+E60/F60 -> 0.04967948718
A61: 5B4AGN | B61: 305 | C61: 72 | D61: 6929 | E61: 383 | F61: 7689 | G61: =+E61/F61 -> 0.04981141891
A62: KS4XQ | D62: 38 | E62: 2 | F62: 40 | G62: =+E62/F62 -> 0.05
A63: PA0MBO | B63: 329 | C63: 244 | D63: 4136 | E63: 251 | F63: 4960 | G63: =+E63/F63 -> 0.05060483871
A64: S52AW | B64: 1782 | C64: 626 | D64: 25300 | E64: 1506 | F64: 29214 | G64: =+E64/F64 -> 0.05155062641
A65: PY3OL | B65: 90 | C65: 36 | D65: 652 | E65: 43 | F65: 821 | G65: =+E65/F65 -> 0.05237515225
A66: LA5EKA | B66: 545 | C66: 344 | D66: 17319 | E66: 1015 | F66: 19223 | G66: =+E66/F66 -> 0.05280133174
A67: AA4VV | B67: 399 | C67: 169 | D67: 12375 | E67: 782 | F67: 13725 | G67: =+E67/F67 -> 0.05697632058
A68: DJ2RD | B68: 5 | D68: 142 | E68: 9 | F68: 156 | G68: =+E68/F68 -> 0.05769230769
A69: RU9CZD | B69: 2026 | C69: 422 | D69: 20298 | E69: 1555 | F69: 24301 | G69: =+E69/F69 -> 0.06398913625
A70: DJ9IE | B70: 615 | C70: 396 | D70: 2450 | E70: 240 | F70: 3701 | G70: =+E70/F70 -> 0.06484733856
A71: VU2LBW | B71: 22 | C71: 13 | D71: 179 | E71: 15 | F71: 229 | G71: =+E71/F71 -> 0.06550218341
A72: WB2LSI | B72: 420 | C72: 206 | D72: 2904 | E72: 248 | F72: 3778 | G72: =+E72/F72 -> 0.06564319746
A73: VE6WZ | B73: 667 | C73: 358 | D73: 5391 | E73: 482 | F73: 6898 | G73: =+E73/F73 -> 0.06987532618
A74: KQ8M | B74: 966 | C74: 504 | D74: 18822 | E74: 1541 | F74: 21833 | G74: =+E74/F74 -> 0.07058123025
A75: NU6O | B75: 336 | C75: 95 | D75: 4211 | E75: 369 | F75: 5011 | G75: =+E75/F75 -> 0.07363799641
A76: G6T | B76: 96 | C76: 26 | D76: 841 | E76: 81 | F76: 1044 | G76: =+E76/F76 -> 0.0775862069
A77: AI4HH | B77: 43 | C77: 36 | D77: 861 | E77: 87 | F77: 1027 | G77: =+E77/F77 -> 0.0847127556
A78: GW8IZR | B78: 1371 | C78: 536 | D78: 25480 | E78: 2597 | F78: 29984 | G78: =+E78/F78 -> 0.08661286019
A79: WB8BIL | B79: 23 | C79: 2 | D79: 91 | E79: 11 | F79: 127 | G79: =+E79/F79 -> 0.08661417323
A80: W2MKM | B80: 202 | C80: 50 | D80: 2229 | E80: 236 | F80: 2717 | G80: =+E80/F80 -> 0.08686050791
A81: G4HYG | B81: 567 | C81: 366 | D81: 8888 | E81: 941 | F81: 10762 | G81: =+E81/F81 -> 0.08743727932
A82: DL5KW | B82: 1 | D82: 9 | E82: 1 | F82: 11 | G82: =+E82/F82 -> 0.09090909091
A83: EA4TX | B83: 662 | C83: 231 | D83: 13725 | E83: 1575 | F83: 16193 | G83: =+E83/F83 -> 0.09726424998
A84: W4KAZ | B84: 820 | C84: 172 | D84: 7695 | E84: 948 | F84: 9635 | G84: =+E84/F84 -> 0.09839128179
A85: EA1FAQ | B85: 786 | C85: 224 | D85: 4787 | E85: 651 | F85: 6448 | G85: =+E85/F85 -> 0.1009615385
A86: VA6DBA | B86: 110 | C86: 40 | D86: 989 | E86: 131 | F86: 1270 | G86: =+E86/F86 -> 0.1031496063
A87: N0TA | B87: 420 | C87: 114 | D87: 7088 | E87: 921 | F87: 8543 | G87: =+E87/F87 -> 0.1078075617
A88: N2QT | B88: 65 | C88: 40 | D88: 1381 | E88: 204 | F88: 1690 | G88: =+E88/F88 -> 0.1207100592
A89: F5MUX | B89: 2281 | C89: 291 | D89: 15087 | E89: 2570 | F89: 20229 | G89: =+E89/F89 -> 0.127045331
A90: DK9IP | B90: 654 | C90: 238 | D90: 13159 | E90: 2107 | F90: 16158 | G90: =+E90/F90 -> 0.130399802
A91: W2RDX | B91: 1040 | C91: 1 | D91: 122 | E91: 180 | F91: 1343 | G91: =+E91/F91 -> 0.1340282949
A92: DK9IP-2 | B92: 377 | C92: 160 | D92: 9388 | E92: 1600 | F92: 11525 | G92: =+E92/F92 -> 0.1388286334
A93: SV8RV | B93: 723 | C93: 143 | D93: 10652 | E93: 1913 | F93: 13431 | G93: =+E93/F93 -> 0.1424316879
A94: KB9VLR | B94: 3 | D94: 3 | E94: 1 | F94: 7 | G94: =+E94/F94 -> 0.1428571429
A95: N4BAF | B95: 38 | C95: 15 | D95: 602 | E95: 115 | F95: 770 | G95: =+E95/F95 -> 0.1493506494
A96: W8WTS | B96: 927 | C96: 179 | D96: 8285 | E96: 1677 | F96: 11068 | G96: =+E96/F96 -> 0.1515178894
A97: Z38N | B97: 1312 | C97: 208 | D97: 10639 | E97: 2339 | F97: 14498 | G97: =+E97/F97 -> 0.1613325976
A98: LU1CGB | B98: 7 | C98: 2 | D98: 11 | E98: 6 | F98: 26 | G98: =+E98/F98 -> 0.2307692308
A99: PY1KN | B99: 7 | D99: 5 | E99: 4 | F99: 16 | G99: =+E99/F99 -> 0.25
A100: ZL2RV | B100: 646 | C100: 164 | D100: 3011 | E100: 1279 | F100: 5100 | G100: =+E100/F100 -> 0.2507843137
A101: KA9SWE | B101: 36 | C101: 11 | D101: 1173 | E101: 514 | F101: 1734 | G101: =+E101/F101 -> 0.2964244521
A102: HA6PX | B102: 1179 | C102: 401 | D102: 12736 | E102: 9001 | F102: 23317 | G102: =+E102/F102 -> 0.386027362
A103: G0VXE | B103: 286 | C103: 41 | D103: 1388 | E103: 1261 | F103: 2976 | G103: =+E103/F103 -> 0.4237231183
A104: PP5MCB | B104: 7 | C104: 1 | D104: 38 | E104: 66 | F104: 112 | G104: =+E104/F104 -> 0.5892857143
A105: DJ4DI | B105: 216 | C105: 7 | D105: 259 | E105: 1991 | F105: 2473 | G105: =+E105/F105 -> 0.8050950263
A106: MM1PTT/P | B106: 941 | C106: 12 | D106: 93 | E106: 9335 | F106: 10381 | G106: =+E106/F106 -> 0.8992389943

Sheet Sheet5
A1: Row Labels | B1: ? | C1: Busted | D1: Good Call | E1: Good Call, new freq? | F1: Grand Total | G1: %Busted
A2: DR1A | B2: 2 | C2: 1 | D2: 7643 | E2: 468 | F2: 8114 | G2: =+C2/F2 -> 0.0001232437762
A3: LZ9W | B3: 8 | D3: 6800 | E3: 590 | F3: 7398 | G3: 0
A4: K3LR | B4: 14 | D4: 6838 | E4: 502 | F4: 7354 | G4: 0
A5: 9A1A | B5: 2 | C5: 2 | D5: 6669 | E5: 610 | F5: 7283 | G5: 0.0002746121104
A6: DF0HQ | B6: 3 | D6: 6396 | E6: 414 | F6: 6813 | G6: 0
A7: NQ4I | B7: 26 | D7: 6101 | E7: 578 | F7: 6705 | G7: 0
A8: YU1LA | B8: 17 | D8: 6040 | E8: 390 | F8: 6447 | G8: 0
A9: IH9R | B9: 4 | D9: 6072 | E9: 233 | F9: 6309 | G9: 0
A10: W3LPL | B10: 14 | D10: 5961 | E10: 322 | F10: 6297 | G10: 0
A11: S57Z | B11: 4 | D11: 5930 | E11: 259 | F11: 6193 | G11: 0
A12: Z38N | B12: 3 | D12: 5624 | E12: 383 | F12: 6010 | G12: 0
A13: S56X | B13: 11 | C13: 1 | D13: 5559 | E13: 304 | F13: 5875 | G13: 0.000170212766
A14: N3RS | B14: 33 | D14: 5175 | E14: 480 | F14: 5688 | G14: 0
A15: HG1S | B15: 22 | C15: 1 | D15: 4631 | E15: 361 | F15: 5015 | G15: 0.0001994017946
A16: DL3VZL | B16: 44 | D16: 3455 | E16: 1476 | F16: 4975 | G16: 0
A17: IR2R | B17: 23 | D17: 4589 | E17: 315 | F17: 4927 | G17: 0
A18: S52AW | B18: 35 | D18: 4539 | E18: 320 | F18: 4894 | G18: 0
A19: C6AKQ | B19: 8 | D19: 4771 | E19: 107 | F19: 4886 | G19: 0
A20: YT7A | B20: 8 | C20: 7 | D20: 4117 | E20: 540 | F20: 4672 | G20: 0.001498287671
A21: II1A | B21: 21 | D21: 4392 | E21: 214 | F21: 4627 | G21: 0
A22: AD4Z | B22: 26 | D22: 4124 | E22: 287 | F22: 4437 | G22: 0
A23: F6KOP | B23: 33 | C23: 4 | D23: 3652 | E23: 575 | F23: 4264 | G23: 0.0009380863039
A24: VE3EJ | B24: 22 | C24: 16 | D24: 3990 | E24: 215 | F24: 4243 | G24: 0.003770916804
A25: W3UA | B25: 24 | D25: 3897 | E25: 318 | F25: 4239 | G25: 0
A26: EA3NT | B26: 31 | C26: 2 | D26: 3693 | E26: 377 | F26: 4103 | G26: 0.0004874482086
A27: OZ5E | B27: 10 | C27: 1 | D27: 3538 | E27: 541 | F27: 4090 | G27: 0.0002444987775
A28: HK1NA | B28: 17 | C28: 1 | D28: 3711 | E28: 298 | F28: 4027 | G28: 0.0002483238143
A29: UA6LCN | B29: 46 | D29: 3551 | E29: 427 | F29: 4024 | G29: 0
A30: NR4M | B30: 25 | D30: 3764 | E30: 211 | F30: 4000 | G30: 0
A31: N4WW | B31: 21 | D31: 3568 | E31: 320 | F31: 3909 | G31: 0
A32: UW4I | B32: 18 | D32: 3408 | E32: 476 | F32: 3902 | G32: 0
A33: YW4D | B33: 18 | D33: 3679 | E33: 180 | F33: 3877 | G33: 0
A34: S50G | B34: 37 | D34: 3510 | E34: 125 | F34: 3672 | G34: 0
A35: KB1H | B35: 14 | D35: 3423 | E35: 182 | F35: 3619 | G35: 0
A36: OL6T | B36: 29 | D36: 3202 | E36: 345 | F36: 3576 | G36: 0
A37: RT6A | B37: 25 | C37: 3 | D37: 3224 | E37: 304 | F37: 3556 | G37: 0.0008436445444
A38: OH6R | B38: 22 | D38: 2888 | E38: 618 | F38: 3528 | G38: 0
A39: K8AZ | B39: 20 | D39: 3182 | E39: 297 | F39: 3499 | G39: 0
A40: NY4A | B40: 36 | C40: 3 | D40: 3226 | E40: 222 | F40: 3487 | G40: 0.0008603383998
A41: OH1TX | B41: 32 | D41: 3053 | E41: 385 | F41: 3470 | G41: 0
A42: JA5FDJ | B42: 5 | D42: 3287 | E42: 151 | F42: 3443 | G42: 0
A43: K0RF | B43: 24 | D43: 3242 | E43: 162 | F43: 3428 | G43: 0
A44: JA3YBK | B44: 6 | D44: 3268 | E44: 131 | F44: 3405 | G44: 0
A45: YL3FT | B45: 25 | C45: 2 | D45: 3049 | E45: 305 | F45: 3381 | G45: 0.0005915409642
A46: LY7A | B46: 27 | D46: 2797 | E46: 503 | F46: 3327 | G46: 0
A47: II2E | B47: 44 | D47: 3183 | E47: 84 | F47: 3311 | G47: 0
A48: W3EA | B48: 29 | C48: 3 | D48: 2940 | E48: 316 | F48: 3288 | G48: 0.0009124087591
A49: 9A7A | B49: 31 | D49: 3075 | E49: 158 | F49: 3264 | G49: 0
A50: K2LE | B50: 36 | D50: 2896 | E50: 315 | F50: 3247 | G50: 0
A51: OK1AWZ | B51: 21 | D51: 2926 | E51: 299 | F51: 3246 | G51: 0
A52: EA2EA | B52: 28 | C52: 2 | D52: 3077 | E52: 136 | F52: 3243 | G52: 0.0006167129201
A53: UW5Y | B53: 36 | D53: 2835 | E53: 279 | F53: 3150 | G53: 0
A54: NR5M | B54: 15 | C54: 6 | D54: 2800 | E54: 289 | F54: 3110 | G54: 0.00192926045
A55: W0AIH | B55: 36 | D55: 2946 | E55: 121 | F55: 3103 | G55: 0
A56: OH5Z | B56: 30 | D56: 2847 | E56: 213 | F56: 3090 | G56: 0
A57: CR3L | B57: 22 | D57: 2984 | E57: 83 | F57: 3089 | G57: 0
A58: DR5N | B58: 57 | D58: 2683 | E58: 314 | F58: 3054 | G58: 0
A59: PJ2T | B59: 13 | D59: 2845 | E59: 184 | F59: 3042 | G59: 0
A60: IR4M | B60: 37 | C60: 20 | D60: 2790 | E60: 147 | F60: 2994 | G60: 0.00668002672
A61: EA5RS | B61: 22 | D61: 2859 | E61: 101 | F61: 2982 | G61: 0
A62: LZ5R | B62: 22 | D62: 2551 | E62: 393 | F62: 2966 | G62: 0
A63: K5GO | B63: 20 | D63: 2718 | E63: 201 | F63: 2939 | G63: 0
A64: TC2M | B64: 17 | D64: 2691 | E64: 189 | F64: 2897 | G64: 0
A65: 4X/UA9CTT | B65: 18 | C65: 15 | D65: 2672 | E65: 190 | F65: 2895 | G65: 0.00518134715
A66: K3WI | B66: 31 | C66: 1 | D66: 2716 | E66: 142 | F66: 2890 | G66: =+C66/F66 -> 0.0003460207612
A67: K1LZ | B67: 19 | D67: 2653 | E67: 132 | F67: 2804 | G67: 0
A68: YT2W | B68: 33 | C68: 2 | D68: 2511 | E68: 243 | F68: 2789 | G68: 0.0007171029043
A69: PI4CC | B69: 44 | D69: 2503 | E69: 205 | F69: 2752 | G69: 0
A70: OM8A | B70: 35 | C70: 1 | D70: 2505 | E70: 87 | F70: 2628 | G70: 0.0003805175038
A71: OL1M | B71: 27 | C71: 3 | D71: 2308 | E71: 280 | F71: 2618 | G71: 0.001145912911
A72: C5A | B72: 28 | C72: 3 | D72: 2452 | E72: 104 | F72: 2587 | G72: 0.001159644376
A73: ED1R | B73: 20 | D73: 2337 | E73: 184 | F73: 2541 | G73: 0
A74: W2RE | B74: 26 | D74: 2364 | E74: 147 | F74: 2537 | G74: 0
A75: W3EF | B75: 23 | D75: 2386 | E75: 92 | F75: 2501 | G75: 0
A76: K3WW | B76: 34 | D76: 2299 | E76: 158 | F76: 2491 | G76: 0
A77: HB9CA | B77: 17 | D77: 2332 | E77: 140 | F77: 2489 | G77: 0
A78: 9A1P | B78: 25 | D78: 2383 | E78: 74 | F78: 2482 | G78: 0
A79: N6SS | B79: 75 | D79: 2186 | E79: 204 | F79: 2465 | G79: 0
A80: W5VX | B80: 31 | D80: 2257 | E80: 153 | F80: 2441 | G80: 0
A81: OH0V | B81: 32 | D81: 2304 | E81: 100 | F81: 2436 | G81: 0
A82: W2FU | B82: 23 | D82: 2302 | E82: 82 | F82: 2407 | G82: 0
A83: K6NA | B83: 62 | C83: 2 | D83: 2178 | E83: 145 | F83: 2387 | G83: 0.0008378718056
A84: K1TO | B84: 11 | D84: 2285 | E84: 88 | F84: 2384 | G84: 0
A85: WX0B | B85: 20 | D85: 2236 | E85: 109 | F85: 2365 | G85: 0
A86: EA3DU | B86: 18 | C86: 1 | D86: 2082 | E86: 240 | F86: 2341 | G86: 0.000427167877
A87: N7AT | B87: 24 | D87: 2181 | E87: 134 | F87: 2339 | G87: 0
A88: HG7T | B88: 36 | D88: 2171 | E88: 120 | F88: 2327 | G88: 0
A89: S57AL | B89: 22 | D89: 2173 | E89: 112 | F89: 2307 | G89: 0
A90: VY2TT | B90: 17 | D90: 2178 | E90: 89 | F90: 2284 | G90: 0
A91: W6YI | B91: 10 | D91: 2187 | E91: 66 | F91: 2263 | G91: 0
A92: K3CR | B92: 24 | D92: 2140 | E92: 88 | F92: 2252 | G92: 0
A93: N4UU | B93: 28 | D93: 2015 | E93: 202 | F93: 2245 | G93: 0
A94: WA1Z | B94: 28 | D94: 2024 | E94: 186 | F94: 2238 | G94: 0
A95: 9A2L | B95: 13 | D95: 2149 | E95: 72 | F95: 2234 | G95: 0
A96: HA5MK | B96: 14 | C96: 4 | D96: 1995 | E96: 189 | F96: 2202 | G96: 0.001816530427
A97: UP0L | B97: 14 | C97: 2 | D97: 1946 | E97: 234 | F97: 2196 | G97: 0.0009107468124
A98: NN3W | B98: 28 | D98: 2082 | E98: 69 | F98: 2179 | G98: 0
A99: OH9W | B99: 33 | D99: 2026 | E99: 109 | F99: 2168 | G99: 0
A100: SO9Q | B100: 22 | D100: 1998 | E100: 135 | F100: 2155 | G100: 0
A101: K5ZD | B101: 35 | D101: 2035 | E101: 79 | F101: 2149 | G101: 0
A102: CO6YAC | B102: 6 | D102: 2039 | E102: 99 | F102: 2144 | G102: 0
A103: EW7LO | B103: 30 | D103: 1948 | E103: 153 | F103: 2131 | G103: 0
A104: OL3Z | B104: 42 | C104: 3 | D104: 1947 | E104: 133 | F104: 2125 | G104: 0.001411764706
A105: K0DQ | B105: 28 | D105: 1938 | E105: 158 | F105: 2124 | G105: 0
A106: JA6SHL | B106: 11 | D106: 2016 | E106: 89 | F106: 2116 | G106: 0
A107: UA3R | B107: 31 | D107: 1786 | E107: 293 | F107: 2110 | G107: 0
A108: HK3O | B108: 15 | D108: 2066 | E108: 26 | F108: 2107 | G108: 0
A109: K1DG | B109: 18 | C109: 2 | D109: 1991 | E109: 79 | F109: 2090 | G109: 0.000956937799
A110: ZF1A | B110: 25 | D110: 1886 | E110: 163 | F110: 2074 | G110: 0
A111: JA1YPA | B111: 4 | D111: 1940 | E111: 117 | F111: 2061 | G111: 0
A112: UZ2M | B112: 29 | D112: 1778 | E112: 198 | F112: 2005 | G112: 0
A113: K1KP | B113: 7 | D113: 1793 | E113: 193 | F113: 1993 | G113: 0
A114: W8AV | B114: 23 | C114: 1 | D114: 1772 | E114: 177 | F114: 1973 | G114: 0.000506842372
A115: PJ4A | B115: 29 | D115: 1861 | E115: 65 | F115: 1955 | G115: 0
A116: R7AW | B116: 34 | C116: 5 | D116: 1734 | E116: 158 | F116: 1931 | G116: 0.002589331952
A117: YL2SW | B117: 29 | D117: 1666 | E117: 233 | F117: 1928 | G117: 0
A118: PA3EWP | B118: 36 | C118: 1 | D118: 1728 | E118: 154 | F118: 1919 | G118: 0.0005211047421
A119: G3VPW | B119: 34 | D119: 1750 | E119: 133 | F119: 1917 | G119: 0
A120: EI7M | B120: 35 | D120: 1773 | E120: 100 | F120: 1908 | G120: 0
A121: WT1T | B121: 25 | D121: 1764 | E121: 100 | F121: 1889 | G121: 0
A122: YU2A | B122: 59 | C122: 2 | D122: 1555 | E122: 273 | F122: 1889 | G122: 0.001058761249
A123: HG1A | B123: 40 | C123: 17 | D123: 1713 | E123: 113 | F123: 1883 | G123: 0.009028146575
A124: OM3ZWA | B124: 45 | D124: 1701 | E124: 127 | F124: 1873 | G124: 0
A125: KH6LC | B125: 15 | D125: 1741 | E125: 110 | F125: 1866 | G125: 0
A126: S53MM | B126: 19 | D126: 1809 | E126: 27 | F126: 1855 | G126: 0
A127: PT2CM | B127: 18 | D127: 1699 | E127: 129 | F127: 1846 | G127: 0
A128: YT6T | B128: 29 | D128: 1668 | E128: 138 | F128: 1835 | G128: 0
A129: OK5W | B129: 38 | D129: 1680 | E129: 117 | F129: 1835 | G129: 0
A130: K9CT | B130: 48 | D130: 1671 | E130: 110 | F130: 1829 | G130: =+C130/F130 -> 0
A131: DJ1YFK | B131: 44 | D131: 1564 | E131: 220 | F131: 1828 | G131: 0
A132: LY2W | B132: 40 | D132: 1544 | E132: 242 | F132: 1826 | G132: 0
A133: OM7M | B133: 30 | C133: 3 | D133: 1673 | E133: 115 | F133: 1821 | G133: 0.001647446458
A134: K1RX | B134: 29 | D134: 1702 | E134: 80 | F134: 1811 | G134: 0
A135: KH7X | B135: 18 | D135: 1644 | E135: 117 | F135: 1779 | G135: 0
A136: VE6JY | B136: 14 | D136: 1681 | E136: 71 | F136: 1766 | G136: 0
A137: JA1XMS | B137: 19 | D137: 1709 | E137: 38 | F137: 1766 | G137: 0
A138: NY3A | B138: 31 | D138: 1656 | E138: 72 | F138: 1759 | G138: 0
A139: S59ABC | B139: 33 | D139: 1671 | E139: 53 | F139: 1757 | G139: 0
A140: YR1C | B140: 25 | D140: 1602 | E140: 126 | F140: 1753 | G140: 0
A141: OK1UG | B141: 48 | D141: 1433 | E141: 267 | F141: 1748 | G141: 0
A142: PW7T | B142: 22 | D142: 1664 | E142: 59 | F142: 1745 | G142: 0
A143: IR2C | B143: 24 | D143: 1613 | E143: 103 | F143: 1740 | G143: 0
A144: SP6OJE | B144: 38 | D144: 1376 | E144: 324 | F144: 1738 | G144: 0
A145: VE3JM | B145: 24 | D145: 1657 | E145: 53 | F145: 1734 | G145: 0
A146: N2IC | B146: 14 | D146: 1688 | E146: 31 | F146: 1733 | G146: 0
A147: W1KM | B147: 30 | C147: 2 | D147: 1582 | E147: 116 | F147: 1730 | G147: 0.001156069364
A148: RG9A | B148: 21 | C148: 2 | D148: 1569 | E148: 134 | F148: 1726 | G148: 0.001158748552
A149: YP9W | B149: 11 | D149: 1651 | E149: 51 | F149: 1713 | G149: 0
A150: DR4A | B150: 35 | C150: 7 | D150: 1532 | E150: 135 | F150: 1709 | G150: 0.004095962551
A151: S57DX | B151: 27 | C151: 2 | D151: 1582 | E151: 96 | F151: 1707 | G151: 0.001171646163
A152: VE3CX | B152: 16 | D152: 1572 | E152: 104 | F152: 1692 | G152: 0
A153: UT7E | B153: 27 | D153: 1581 | E153: 76 | F153: 1684 | G153: 0
A154: R9DX | B154: 28 | D154: 1541 | E154: 108 | F154: 1677 | G154: 0
A155: K2QMF | B155: 25 | D155: 1530 | E155: 98 | F155: 1653 | G155: 0
A156: 9A5K | B156: 24 | D156: 1547 | E156: 80 | F156: 1651 | G156: 0
A157: IC8FBU | B157: 67 | D157: 1329 | E157: 248 | F157: 1644 | G157: 0
A158: VE7FO | B158: 30 | D158: 1489 | E158: 115 | F158: 1634 | G158: 0
A159: YO8KIS | B159: 18 | D159: 1474 | E159: 115 | F159: 1607 | G159: 0
A160: OL7M | B160: 59 | C160: 3 | D160: 1383 | E160: 162 | F160: 1607 | G160: 0.001866832607
A161: OE3K | B161: 51 | C161: 1 | D161: 1478 | E161: 75 | F161: 1605 | G161: 0.0006230529595
A162: DK0EE | B162: 37 | D162: 1452 | E162: 101 | F162: 1590 | G162: 0
A163: K7NJ | B163: 35 | D163: 1490 | E163: 54 | F163: 1579 | G163: 0
A164: 9A8M | B164: 39 | D164: 1463 | E164: 52 | F164: 1554 | G164: 0
A165: S52W | B165: 78 | C165: 8 | D165: 1221 | E165: 240 | F165: 1547 | G165: 0.005171299289
A166: ZM1A | B166: 20 | D166: 1414 | E166: 81 | F166: 1515 | G166: 0
A167: AA4NC | B167: 56 | C167: 2 | D167: 1294 | E167: 160 | F167: 1512 | G167: 0.001322751323
A168: DL1LH | B168: 28 | D168: 1322 | E168: 142 | F168: 1492 | G168: 0
A169: EF5F | B169: 17 | D169: 1449 | E169: 25 | F169: 1491 | G169: 0
A170: UN0L | B170: 42 | D170: 1262 | E170: 182 | F170: 1486 | G170: 0
A171: B1Z | B171: 22 | D171: 1312 | E171: 146 | F171: 1480 | G171: 0
A172: K4PV | B172: 25 | D172: 1378 | E172: 74 | F172: 1477 | G172: 0
A173: RW0A | B173: 18 | C173: 11 | D173: 1318 | E173: 126 | F173: 1473 | G173: 0.007467752885
A174: HB9DHG | B174: 11 | D174: 1359 | E174: 92 | F174: 1462 | G174: 0
A175: G5W | B175: 33 | D175: 1303 | E175: 122 | F175: 1458 | G175: 0
A176: E7DX | B176: 36 | C176: 9 | D176: 1341 | E176: 71 | F176: 1457 | G176: 0.006177076184
A177: N2WKS | B177: 15 | D177: 1361 | E177: 81 | F177: 1457 | G177: 0
A178: RA3SI | B178: 34 | D178: 1282 | E178: 132 | F178: 1448 | G178: 0
A179: EF5X | B179: 6 | D179: 1382 | E179: 58 | F179: 1446 | G179: 0
A180: W5RU | B180: 25 | D180: 1305 | E180: 107 | F180: 1437 | G180: 0
A181: KP2M | B181: 25 | D181: 1283 | E181: 122 | F181: 1430 | G181: 0
A182: RM3F | B182: 27 | D182: 1296 | E182: 106 | F182: 1429 | G182: 0
A183: LA9TJA | B183: 34 | D183: 1278 | E183: 108 | F183: 1420 | G183: 0
A184: IR2T | B184: 25 | C184: 3 | D184: 1319 | E184: 72 | F184: 1419 | G184: 0.002114164905
A185: JH1GBZ | B185: 21 | D185: 1338 | E185: 51 | F185: 1410 | G185: 0
A186: EA7TG | B186: 32 | D186: 1270 | E186: 89 | F186: 1391 | G186: 0
A187: RU1A | B187: 29 | C187: 1 | D187: 1248 | E187: 111 | F187: 1389 | G187: 0.0007199424046
A188: RL3A | B188: 46 | D188: 1160 | E188: 174 | F188: 1380 | G188: 0
A189: VE3YAA | B189: 29 | D189: 1249 | E189: 100 | F189: 1378 | G189: 0
A190: LX7I | B190: 28 | D190: 1267 | E190: 75 | F190: 1370 | G190: 0
A191: 4U1GSC | B191: 30 | D191: 1264 | E191: 73 | F191: 1367 | G191: 0
A192: TF4X | B192: 36 | D192: 1268 | E192: 55 | F192: 1359 | G192: 0
A193: RZ4FWW | B193: 34 | D193: 1191 | E193: 124 | F193: 1349 | G193: 0
A194: W1WEF | B194: 32 | D194: 1235 | E194: 68 | F194: 1335 | G194: =+C194/F194 -> 0
A195: EF7X | B195: 20 | D195: 1256 | E195: 59 | F195: 1335 | G195: 0
A196: S56CW | B196: 45 | C196: 3 | D196: 1209 | E196: 65 | F196: 1322 | G196: 0.002269288956
A197: G5O | B197: 33 | D197: 1186 | E197: 95 | F197: 1314 | G197: 0
A198: K0EU | B198: 23 | D198: 1224 | E198: 64 | F198: 1311 | G198: 0
A199: PX2C | B199: 28 | D199: 1234 | E199: 47 | F199: 1309 | G199: 0
A200: OL1C | B200: 26 | D200: 1168 | E200: 114 | F200: 1308 | G200: 0
... 4300 more rows

Sheet Sheet6
A1: Sub macro1()
A2: Start = Timer
A4: Dim i As Long, j As Long, string1_length As Long, string2_length As Long
A5: Dim distance(0 To 60, 0 To 50) As Long, smStr1(1 To 60) As Long, smStr2(1 To 50) As Long
A6: Dim min1 As Long, min2 As Long, min3 As Long, minmin As Long, MaxL As Long
A10: Data = Sheets("sheet1").Range("A2:M993549").Value
A12: For y = 2 To 993548
A14: goodcallcounter = 0
A15: bustedcallcounter = 0
A17: string1 = Data(y, 2)
A18: freq1 = Data(y, 3)
A19: time1 = Data(y, 4)
A21: For Z = y - 1 To 1 Step -1
A23: string2 = Data(Z, 2)
A24: freq2 = Data(Z, 3)
A25: time2 = Data(Z, 4)
A27: If Abs(time2 - time1) >= 26 Then
A28: Data(y, 6) = "?"
A29: Exit For
A30: Else
A31: End If
A33: If string1 = string2 And Abs(freq1 - freq2) <= 0.34 Then
A34: goodcallcounter = goodcallcounter + 1
A35: If goodcallcounter = 1 Then g1 = Z
A36: If goodcallcounter = 2 Then g2 = Z
A37: End If
A39: If string1 = string2 And Abs(freq1 - freq2) >= 0.35 And Data(Z, 6) = "Good Call" Then
A40: Data(y, 6) = "Good Call, new freq?"
A41: Exit For
A42: Else
A43: End If
A45: If goodcallcounter = 2 Then
A46: Data(y, 6) = "Good Call"
A47: Data(g1, 13) = "Good Call"
A48: Data(g2, 13) = "Good Call"
A49: Exit For
A50: Else
A51: End If
A54: If Abs(freq1 - freq2) >= 0.35 Then
A55: Data(y, 6) = "?"
A56: GoTo a:
A57: End If
A61: ' Levenshtein3 will properly return a percent match (100%=exact) based on similarities and Lengths etc...
A62: string1_length = Len(string1): string2_length = Len(string2)
A63: distance(0, 0) = 0
A64: For i = 1 To string1_length: distance(i, 0) = i: smStr1(i) = Asc(LCase(Mid$(string1, i, 1))): Next
A65: For j = 1 To string2_length: distance(0, j) = j: smStr2(j) = Asc(LCase(Mid$(string2, j, 1))): Next
A66: For i = 1 To string1_length
A67: For j = 1 To string2_length
A68: If smStr1(i) = smStr2(j) Then
A69: distance(i, j) = distance(i - 1, j - 1)
A70: Else
A71: min1 = distance(i - 1, j) + 1
A72: min2 = distance(i, j - 1) + 1
A73: min3 = distance(i - 1, j - 1) + 1
A74: If min2 < min1 Then
A75: If min2 < min3 Then minmin = min2 Else minmin = min3
A76: Else
A77: If min1 < min3 Then minmin = min1 Else minmin = min3
A78: End If
A79: distance(i, j) = minmin
A80: End If
A81: Next
A82: Next
A84: MaxL = string1_length: If string2_length > MaxL Then MaxL = string2_length
A85: Levenshtein3 = 100 - CLng((distance(string1_length, string2_length) * 100) / MaxL)
A86: ' end Levenshtein calculation
A88: If Levenshtein3 > 50 And Levenshtein3 < 100 And Abs(freq1 - freq2) <= 0.11 And Data(Z, 6) <> "Busted" Then bustedcallcounter = bustedcallcounter + 1
A89: If bustedcallcounter > 2 Then
A90: Data(y, 6) = "Busted"
A91: Data(y, 7) = Levenshtein3
A92: Data(y, 8) = Z
A93: Data(y, 9) = string2
A94: Data(y, 10) = freq2
A95: Data(y, 11) = time2
A96: Data(y, 12) = Data(Z, 5)
A97: Exit For
A98: Else
A99: Data(y, 6) = "?"
A100: End If
A101: a:
A102: Next
A103: Next
A105: Sheets("sheet2").Cells(y + 3, 1).Value = Timer - Start & " seconds "
A107: Sheets("sheet2").Cells(1, 2).Value = "#1"
A108: Sheets("sheet2").Cells(1, 3).Value = "call1"
A109: Sheets("sheet2").Cells(1, 4).Value = "freq1"
A110: Sheets("sheet2").Cells(1, 5).Value = "time1"
A111: Sheets("sheet2").Cells(1, 6).Value = "Spotter"
A112: Sheets("sheet2").Cells(1, 7).Value = "Quality tag"
A113: Sheets("sheet2").Cells(1, 8).Value = "Levenshtein %"
A114: Sheets("sheet2").Cells(1, 9).Value = "#2"
A115: Sheets("sheet2").Cells(1, 10).Value = "Call2"
A116: Sheets("sheet2").Cells(1, 11).Value = "Freq2"
A117: Sheets("sheet2").Cells(1, 12).Value = "time2"
A118: Sheets("sheet2").Cells(1, 13).Value = "Spotter2"
A119: Sheets("sheet2").Cells(1, 14).Value = "Quality after look back"
A121: Start = Timer
A122: For y = 1 To 993548
A125: Sheets("sheet2").Cells(y + 1, 2).Value = Data(y, 1)
A126: Sheets("sheet2").Cells(y + 1, 3).Value = Data(y, 2)
A127: Sheets("sheet2").Cells(y + 1, 4).Value = Data(y, 3)
A128: Sheets("sheet2").Cells(y + 1, 5).Value = Data(y, 4)
A129: Sheets("sheet2").Cells(y + 1, 6).Value = Data(y, 5)
A130: Sheets("sheet2").Cells(y + 1, 7).Value = Data(y, 6)
A131: Sheets("sheet2").Cells(y + 1, 8).Value = Data(y, 7)
A132: Sheets("sheet2").Cells(y + 1, 9).Value = Data(y, 8)
A133: Sheets("sheet2").Cells(y + 1, 10).Value = Data(y, 9)
A134: Sheets("sheet2").Cells(y + 1, 11).Value = Data(y, 10)
A135: Sheets("sheet2").Cells(y + 1, 12).Value = Data(y, 11)
A136: Sheets("sheet2").Cells(y + 1, 13).Value = Data(y, 12)
A137: Sheets("sheet2").Cells(y + 1, 14).Value = Data(y, 13)
A139: Next
A140: Sheets("sheet2").Cells(y + 4, 1).Value = Timer - Start & " seconds "
A142: End Sub
